bitfinex/quotes_BTCUSD_20230906
["timestamp","ask_amount","ask_price","bid_price","bid_amount"]
[1694023339933,0.804653,25952.0,25951.0,0.002]
[1694023340366,1.575306,25952.0,25951.0,0.002]
[1694023340584,1.551306,25952.0,25951.0,0.01384387]
[1694023340805,1.575306,25952.0,25950.0,0.062]
[1694023341037,1.551306,25952.0,25950.0,0.06]
[1694023341459,2.345959,25952.0,25951.0,0.002]
[1694023341665,2.321959,25952.0,25950.0,0.06]
[1694023341886,2.345959,25952.0,25950.0,0.062]
[1694023342966,2.345959,25952.0,25951.0,0.06025794]
[1694023342967,0.034,25952.0,25951.0,0.06025794]
[1694023343644,0.01,25952.0,25951.0,0.06025794]
[1694023344311,0.78185231,25966.0,25963.0,0.04]
[1694023344548,0.78185231,25966.0,25964.0,0.19465811]
[1694023344549,1.540551,25965.0,25964.0,0.19465811]
[1694023344768,2.69747527,25965.0,25964.0,0.19465811]
[1694023345055,1.540516,25966.0,25964.0,0.19465811]
[1694023345269,0.790161,25969.0,25965.0,0.04]
[1694023345482,1.540488,25966.0,25965.0,0.04]
[1694023345898,0.770219,25967.0,25965.0,0.04]
[1694023346119,1.540448,25967.0,25965.0,0.04]
[1694023346584,1.540448,25967.0,25966.0,0.01346655]
[1694023346585,2.310677,25967.0,25966.0,0.01346655]
[1694023347221,2.310677,25967.0,25965.0,0.04]
[1694023347222,2.72967695,25967.0,25965.0,0.04]
[1694023347443,0.27125468,25966.0,25965.0,0.002]
[1694023347659,2.96861395,25966.0,25963.0,0.04]
[1694023347865,0.38664527,25965.0,25963.0,0.04]
[1694023348070,3.081188,25964.0,25963.0,0.04]
[1694023349121,3.235444,25964.0,25963.0,0.04]
[1694023349345,3.245444,25964.0,25963.0,0.04]
[1694023349554,3.245444,25964.0,25961.0,0.06]
[1694023349769,3.245444,25964.0,25959.0,0.06]
[1694023349770,0.03235468,25963.0,25959.0,0.06]
[1694023349978,0.03235468,25963.0,25960.0,0.06]
[1694023349979,3.46809327,25962.0,25960.0,0.06]
[1694023350446,3.50044795,25962.0,25960.0,0.06]
[1694023350657,2.73008595,25962.0,25961.0,0.06]
[1694023350869,2.73008595,25962.0,25961.0,0.062]
[1694023351091,2.73008595,25962.0,25961.0,0.06]
[1694023351092,2.69773127,25962.0,25961.0,0.06]
[1694023351573,2.71273127,25962.0,25961.0,0.06]
[1694023351770,2.69773127,25962.0,25961.0,0.06]
[1694023352201,0.770339,25963.0,25962.0,0.06]
[1694023352420,1.540666,25963.0,25962.0,0.06]
[1694023352634,1.694873,25964.0,25963.0,0.04025794]
[1694023353113,1.694873,25964.0,25963.0,0.05373577]
[1694023353114,0.924562,25964.0,25963.0,0.05373577]
[1694023353332,2.08151727,25964.0,25963.0,0.05373577]
[1694023353554,2.85182727,25964.0,25963.0,0.05373577]
[1694023353774,2.08151727,25964.0,25963.0,0.04025794]
[1694023353992,2.10551727,25964.0,25963.0,0.04225794]
[1694023354226,2.87581427,25964.0,25963.0,0.04225794]
[1694023354678,2.87581427,25964.0,25963.0,0.042]
[1694023355126,2.87581427,25964.0,25963.0,0.002]
[1694023355359,3.14706895,25964.0,25963.0,0.002]
[1694023355783,3.23522895,25964.0,25963.0,0.002]
[1694023356001,3.23522895,25964.0,25956.0,0.065]
[1694023356002,3.27206895,25964.0,25956.0,0.065]
[1694023356223,0.2389,25959.0,25956.0,0.065]
[1694023356432,3.46854527,25958.0,25956.0,0.065]
[1694023356704,1.92759527,25958.0,25957.0,0.06025794]
[1694023357448,2.69807027,25958.0,25957.0,0.06025794]
[1694023357697,0.024,25959.0,25958.0,0.06]
[1694023357920,0.154256,25964.0,25959.0,0.06025794]
[1694023358141,0.154256,25964.0,25963.0,0.04]
[1694023358365,0.154256,25964.0,25963.0,0.19491605]
[1694023358587,0.06040755,25965.0,25964.0,0.04]
[1694023359856,2.75785382,25965.0,25964.0,0.04]
[1694023360078,1.60094155,25965.0,25964.0,0.04]
[1694023360551,2.37220855,25965.0,25964.0,0.046]
[1694023360760,2.37120855,25965.0,25964.0,0.04]
[1694023360966,2.41120855,25965.0,25964.0,0.04]
[1694023361596,2.42320855,25965.0,25964.0,0.041]
[1694023362028,3.12919888,25965.0,25964.0,0.001]
[1694023362241,3.0811085,25965.0,25964.0,0.001]
[1694023362876,2.8422085,25965.0,25964.0,0.001]
[1694023363084,2.8422085,25965.0,25963.0,0.04]
[1694023363085,3.6004755,25965.0,25963.0,0.04]
[1694023363297,0.38664527,25964.0,25963.0,0.04]
[1694023363507,2.74989095,25964.0,25959.0,0.06]
[1694023363740,2.74989095,25964.0,25956.0,0.065]
[1694023363741,0.04,25957.0,25956.0,0.065]
[1694023363971,4.33891233,25957.0,25956.0,0.065]
[1694023364179,4.45298701,25957.0,25956.0,0.05340701]
[1694023364419,4.57991586,25957.0,25956.0,0.05340701]
[1694023364636,4.45544701,25957.0,25956.0,0.05340701]
[1694023364848,4.45496701,25957.0,25956.0,0.05340701]
[1694023365066,0.02,25955.0,25951.0,0.06]
[1694023365280,4.23964527,25954.0,25952.0,0.06]
[1694023365951,0.62554527,25953.0,25949.0,0.06]
[1694023366162,3.082636,25952.0,25951.0,0.06]
[1694023366367,3.46928127,25952.0,25951.0,0.06]
[1694023367014,3.46928127,25952.0,25948.0,0.02]
[1694023367222,3.46928127,25952.0,25946.0,0.009998]
[1694023367223,0.38664527,25951.0,25950.0,0.06]
[1694023367440,0.38664527,25951.0,25948.0,0.06]
[1694023367441,3.01869427,25951.0,25948.0,0.06]
[1694023368755,3.27192946,25951.0,25948.0,0.06]
[1694023369174,0.62554527,25950.0,25946.0,0.009998]
[1694023369389,0.2589,25947.0,25946.0,0.009998]
[1694023369615,2.18714927,25947.0,25946.0,0.009998]
[1694023369824,3.72875327,25947.0,25946.0,0.009998]
[1694023370034,3.78849533,25947.0,25946.0,0.009998]
[1694023370247,4.02875327,25947.0,25946.0,0.009998]
[1694023370476,4.08849533,25947.0,25946.0,0.009998]
[1694023370686,4.17439533,25947.0,25946.0,0.009998]
[1694023370951,2.651406,25947.0,25946.0,0.009998]
[1694023371164,1.541587,25948.0,25947.0,0.06]
[1694023371373,0.770772,25948.0,25947.0,0.06]
[1694023371577,2.312316,25948.0,25947.0,0.06]
[1694023371793,1.541544,25948.0,25947.0,0.06]
[1694023371999,2.312316,25948.0,25947.0,0.06]
[1694023372217,2.312316,25948.0,25946.0,0.009998]
[1694023372422,0.38664527,25947.0,25946.0,0.009998]
[1694023372634,2.69905127,25947.0,25946.0,0.009998]
[1694023373251,2.72305127,25947.0,25946.0,0.009998]
[1694023373478,2.69905127,25947.0,25946.0,0.009998]
[1694023373669,3.08569654,25947.0,25946.0,0.009998]
[1694023373877,2.71805127,25947.0,25946.0,0.009998]
[1694023374086,1.560604,25947.0,25946.0,0.009998]
[1694023374308,1.560604,25947.0,25946.0,0.069998]
[1694023374516,2.71805127,25947.0,25946.0,0.069998]
[1694023375352,1.560604,25947.0,25946.0,0.069998]
[1694023375769,2.331406,25947.0,25946.0,0.069998]
[1694023375973,1.560604,25947.0,25946.0,0.069998]
[1694023376422,2.331406,25947.0,25946.0,0.069998]
[1694023377075,3.03226907,25947.0,25946.0,0.069998]
[1694023377549,2.71805127,25947.0,25946.0,0.069998]
[1694023377757,2.67023127,25947.0,25946.0,0.069998]
[1694023378402,2.67023127,25947.0,25946.0,0.009998]
[1694023378403,2.90913127,25947.0,25946.0,0.009998]
[1694023378617,3.00023127,25947.0,25946.0,0.009998]
[1694023378824,2.99789127,25947.0,25946.0,0.009998]
[1694023379036,2.92913127,25947.0,25946.0,0.009998]
[1694023379241,3.00431127,25947.0,25946.0,0.009998]
[1694023379479,3.39281654,25947.0,25946.0,0.009998]
[1694023379679,3.7396986,25947.0,25946.0,0.009998]
[1694023379901,4.5273606,25947.0,25946.0,0.009998]
[1694023380111,3.78699328,25947.0,25946.0,0.009998]
[1694023380319,3.78657328,25947.0,25946.0,0.009998]
[1694023380529,3.40076801,25947.0,25946.0,0.009998]
[1694023380743,3.40070801,25947.0,25946.0,0.009998]
[1694023380955,3.39014801,25947.0,25946.0,0.009998]
[1694023381211,3.39014801,25947.0,25939.0,0.06]
[1694023381212,0.02,25944.0,25939.0,0.06]
[1694023381431,0.2389,25940.0,25937.0,0.06]
[1694023381641,0.2389,25940.0,25939.0,0.06]
[1694023381859,0.03974206,25942.0,25941.0,0.06]
[1694023381860,0.770975,25942.0,25941.0,0.06]
[1694023382103,0.770975,25942.0,25940.0,0.00025794]
[1694023382104,0.770943,25943.0,25942.0,0.06]
[1694023382325,1.54184,25943.0,25942.0,0.06]
[1694023382550,2.31276,25943.0,25942.0,0.06]
[1694023382976,0.77091,25944.0,25943.0,0.06]
[1694023383200,0.27864206,25949.0,25946.0,0.06]
[1694023383201,0.770815,25947.0,25946.0,0.06]
[1694023383420,2.312447,25947.0,25946.0,0.06]
[1694023383888,2.69909227,25947.0,25946.0,0.06]
[1694023384994,2.312447,25947.0,25946.0,0.21465811]
[1694023385210,2.312447,25947.0,25946.0,0.06]
[1694023385429,1.541617,25947.0,25946.0,0.06]
[1694023385659,0.002,25947.0,25946.0,0.06]
[1694023385879,0.945,25951.0,25946.0,0.06025794]
[1694023386126,2.486386,25951.0,25950.0,0.06]
[1694023386354,2.486386,25951.0,25943.0,0.06]
[1694023386355,0.04,25945.0,25943.0,0.06]
[1694023386566,2.69931827,25944.0,25943.0,0.06]
[1694023386778,3.083564,25944.0,25943.0,0.06]
[1694023387444,3.11591868,25944.0,25943.0,0.06]
[1694023387656,2.312673,25944.0,25943.0,0.06]
[1694023387865,1.541782,25944.0,25943.0,0.06]
[1694023388723,0.760891,25944.0,25943.0,0.06]
[1694023388957,0.01,25945.0,25944.0,0.06]
[1694023389176,0.01,25945.0,25944.0,0.21491605]
[1694023389391,0.01,25945.0,25944.0,1.31779421]
[1694023389607,0.01,25945.0,25944.0,1.33779421]
[1694023389820,1.5414,25951.0,25950.0,0.06]
[1694023390039,0.77069,25951.0,25950.0,0.21465811]
[1694023390300,2.63108295,25951.0,25950.0,0.06]
[1694023392489,2.65508295,25951.0,25950.0,0.06]
[1694023392707,2.59872827,25951.0,25950.0,0.06]
[1694023392932,1.541342,25952.0,25951.0,0.06]
[1694023393150,0.770642,25953.0,25952.0,0.06]
[1694023393364,1.541218,25954.0,25953.0,0.06]
[1694023393573,1.541214,25954.0,25953.0,0.06]
[1694023394038,0.770531,25957.0,25956.0,0.06]
[1694023394256,1.541056,25957.0,25956.0,0.21465811]
[1694023394475,1.541056,25957.0,25956.0,0.06]
[1694023394476,0.770525,25957.0,25956.0,0.06]
[1694023394708,0.770451,25959.0,25957.0,0.06]
[1694023394917,0.770451,25959.0,25958.0,0.06025794]
[1694023395363,1.54087,25960.0,25959.0,0.06025794]
[1694023396243,0.03038889,25963.0,25961.0,0.06]
[1694023396455,0.03038889,25963.0,25962.0,0.06]
[1694023396664,1.009211,25964.0,25963.0,0.00764532]
[1694023396970,2.58074462,25964.0,25961.0,0.02764532]
[1694023397054,2.58074462,25964.0,25960.0,0.02764532]
[1694023397055,2.89652368,25964.0,25960.0,0.02764532]
[1694023397271,0.2389,25961.0,25960.0,0.02764532]
[1694023397497,3.320444,25961.0,25960.0,0.02764532]
[1694023397729,3.46818927,25961.0,25960.0,0.02764532]
[1694023398819,3.49814834,25961.0,25960.0,0.02764532]
[1694023399487,3.73704834,25961.0,25960.0,0.02764532]
[1694023399912,3.76104834,25961.0,25960.0,0.02764532]
[1694023400563,4.14769361,25961.0,25960.0,0.02764532]
[1694023400789,4.22431361,25961.0,25960.0,0.02764532]
[1694023400998,3.82812834,25961.0,25960.0,0.02764532]
[1694023401216,3.76104834,25961.0,25959.0,0.02764532]
[1694023401427,3.13550307,25961.0,25960.0,0.02764532]
[1694023401653,3.37440307,25961.0,25960.0,0.02764532]
[1694023401861,3.344444,25961.0,25960.0,0.02764532]
[1694023402088,3.70708927,25961.0,25960.0,0.02764532]
[1694023402521,3.73108927,25961.0,25960.0,0.02764532]
[1694023402729,3.70708927,25961.0,25960.0,0.02764532]
[1694023403157,3.73108927,25961.0,25960.0,0.02764532]
[1694023403405,3.76080817,25961.0,25960.0,0.02764532]
[1694023403617,4.14745344,25961.0,25960.0,0.02764532]
[1694023403838,0.29864206,25960.0,25957.0,0.02764532]
[1694023404055,0.29864206,25960.0,25949.0,0.06]
[1694023404056,0.62554527,25958.0,25955.0,0.02764532]
[1694023404284,0.62554527,25956.0,25954.0,0.02764532]
[1694023404504,2.311692,25955.0,25953.0,0.02764532]
[1694023404752,0.62554527,25954.0,25953.0,0.02764532]
[1694023404976,2.96704617,25954.0,25953.0,0.02764532]
[1694023405185,3.03340617,25954.0,25953.0,0.02764532]
[1694023405401,3.08556617,25954.0,25953.0,0.02764532]
[1694023405636,3.08412617,25954.0,25944.0,0.2619]
[1694023405850,3.08412617,25954.0,25952.0,0.02764532]
[1694023405851,0.38664527,25953.0,25952.0,0.02764532]
[1694023406063,3.04381317,25953.0,25952.0,0.02764532]
[1694023406288,3.04273317,25953.0,25952.0,0.02764532]
[1694023406494,2.93741427,25953.0,25952.0,0.02764532]
[1694023406915,3.04009317,25953.0,25952.0,0.02764532]
[1694023407129,3.03883317,25953.0,25952.0,0.02764532]
[1694023407367,3.03727317,25953.0,25946.0,0.08]
[1694023407582,2.4215679,25953.0,25952.0,0.02764532]
[1694023407797,2.5804879,25953.0,25952.0,0.02764532]
[1694023408015,2.550769,25953.0,25952.0,0.02764532]
[1694023408454,2.620669,25953.0,25952.0,0.02764532]
[1694023408671,2.621689,25953.0,25952.0,0.02764532]
[1694023408878,2.616889,25953.0,25952.0,0.02764532]
[1694023409090,2.615989,25953.0,25952.0,0.02764532]
[1694023409306,2.574769,25953.0,25952.0,0.02764532]
[1694023409516,2.550769,25953.0,25952.0,0.02764532]
[1694023409757,2.574769,25953.0,25952.0,0.02764532]
[1694023410193,2.96141427,25953.0,25952.0,0.02764532]
[1694023410417,2.72251427,25953.0,25952.0,0.02764532]
[1694023411940,2.72251427,25953.0,25952.0,0.02264532]
[1694023412154,2.96141427,25953.0,25952.0,0.02264532]
[1694023412343,3.73203727,25953.0,25951.0,0.02264532]
[1694023412610,0.62554527,25952.0,25951.0,0.02264532]
[1694023412827,2.93750427,25952.0,25951.0,0.02264532]
[1694023413044,3.36592317,25952.0,25950.0,0.02264532]
[1694023413282,0.15030311,25951.0,25950.0,0.02264532]
[1694023413498,2.84899738,25951.0,25950.0,0.02264532]
[1694023414158,2.91625738,25951.0,25950.0,0.02264532]
[1694023414380,3.25827738,25951.0,25947.0,0.02264532]
[1694023414614,0.38664527,25950.0,25947.0,0.02264532]
[1694023414834,0.1588,25948.0,25947.0,0.02264532]
[1694023415039,2.08698927,25948.0,25945.0,0.02264532]
[1694023415250,2.08698927,25948.0,25946.0,0.02264532]
[1694023415251,0.38664527,25947.0,25946.0,0.02264532]
[1694023415462,0.1588,25946.0,25941.0,0.00025794]
[1694023415675,0.38664527,25945.0,25944.0,0.02264532]
[1694023415888,2.85807327,25945.0,25944.0,0.02264532]
[1694023416583,2.85807327,25945.0,25944.0,0.02258479]
[1694023417197,2.85807327,25945.0,25944.0,0.01758479]
[1694023418764,2.85807327,25945.0,25941.0,0.00025794]
[1694023418765,2.88207327,25945.0,25943.0,0.01758479]
[1694023418977,0.1588,25944.0,25943.0,0.01758479]
[1694023419193,2.85811827,25944.0,25943.0,0.01758479]
[1694023420319,2.85811827,25944.0,25942.0,0.01758479]
[1694023420320,3.40356354,25944.0,25942.0,0.01758479]
[1694023420574,0.38664527,25943.0,25941.0,0.01758479]
[1694023420789,3.2426,25942.0,25941.0,0.01758479]
[1694023421009,3.62924527,25942.0,25941.0,0.01758479]
[1694023422068,0.1688,25942.0,25941.0,0.01758479]
[1694023422289,0.56959004,25946.0,25945.0,0.01784273]
[1694023422290,0.06045406,25946.0,25945.0,0.01784273]
[1694023422507,0.09192898,25953.0,25952.0,0.01758479]
[1694023422758,1.92789127,25953.0,25952.0,0.1722429]
[1694023422974,0.86250698,25955.0,25953.0,0.00258479]
[1694023422975,0.770616,25954.0,25953.0,0.00258479]
[1694023423181,1.15726127,25954.0,25953.0,0.1572429]
[1694023423629,1.92786427,25954.0,25953.0,0.00258479]
[1694023423861,2.08666427,25954.0,25953.0,0.00258479]
[1694023425153,1.32504827,25954.0,25953.0,0.00358479]
[1694023425573,2.09564227,25954.0,25953.0,0.00358479]
[1694023425788,2.09564227,25954.0,25953.0,0.001]
[1694023426002,2.86623627,25954.0,25953.0,0.00358479]
[1694023427297,3.25288154,25954.0,25953.0,0.001]
[1694023427511,3.55302399,25954.0,25953.0,0.001]
[1694023427753,3.07522974,25954.0,25953.0,0.001]
[1694023427964,3.07522974,25954.0,25953.0,0.00358479]
[1694023427965,2.25857034,25954.0,25953.0,0.00358479]
[1694023428184,2.31272674,25954.0,25953.0,0.00358479]
[1694023428398,3.07432074,25954.0,25953.0,0.00258479]
[1694023428628,3.09832074,25954.0,25953.0,0.00358479]
[1694023428844,2.83632074,25954.0,25953.0,0.00258479]
[1694023429318,5.11047144,25954.0,25953.0,0.001]
[1694023429536,6.10890789,25954.0,25953.0,0.001]
[1694023429749,5.90520544,25954.0,25953.0,0.001]
[1694023429984,5.90256544,25954.0,25953.0,0.001]
[1694023430204,5.90298544,25954.0,25953.0,0.001]
[1694023430423,5.90226544,25954.0,25953.0,0.001]
[1694023430631,5.90280544,25954.0,25953.0,0.001]
[1694023430841,6.4158529,25954.0,25953.0,0.001]
[1694023431054,6.4110529,25954.0,25953.0,0.001]
[1694023431281,6.4067329,25954.0,25953.0,0.001]
[1694023431498,6.4067329,25954.0,25946.0,0.00025794]
[1694023431499,0.50974206,25946.0,25943.0,0.00258479]
[1694023431707,3.321444,25945.0,25943.0,0.00258479]
[1694023431915,0.38664527,25944.0,25943.0,0.00258479]
[1694023432134,2.69931827,25944.0,25943.0,0.00258479]
[1694023432343,2.69931827,25944.0,25940.0,0.01758479]
[1694023433190,2.69931827,25944.0,25939.0,0.01758479]
[1694023433615,2.69931827,25944.0,25940.0,0.01758479]
[1694023433835,2.69931827,25944.0,25939.0,0.01758479]
[1694023434256,2.69931827,25944.0,25940.0,0.01758479]
[1694023435085,0.238,25942.0,25936.0,0.03758279]
[1694023435309,0.238,25940.0,25936.0,0.03758279]
[1694023435522,3.47066127,25941.0,25936.0,0.019998]
[1694023435523,0.238,25937.0,25936.0,0.019998]
[1694023435730,2.16684327,25937.0,25936.0,0.019998]
[1694023435948,2.93794227,25937.0,25936.0,0.019998]
[1694023436610,2.69994227,25937.0,25936.0,0.019998]
[1694023437281,0.9,25934.0,25930.0,0.0202]
[1694023437495,0.238,25931.0,25930.0,0.0202]
[1694023437740,2.16719927,25931.0,25930.0,0.0202]
[1694023438198,1.92919927,25931.0,25930.0,0.0202]
[1694023438638,2.14719927,25931.0,25930.0,0.0202]
[1694023438867,1.37592227,25931.0,25930.0,0.0202]
[1694023439092,1.90919927,25931.0,25930.0,0.0202]
[1694023439334,2.82747148,25931.0,25930.0,0.0202]
[1694023439542,3.53027148,25931.0,25930.0,1e-08]
[1694023439756,3.11523148,25931.0,25930.0,1e-08]
[1694023439990,3.50085675,25931.0,25930.0,1e-08]
[1694023440208,3.14451148,25931.0,25930.0,1e-08]
[1694023440423,3.55187148,25931.0,25930.0,1e-08]
[1694023440682,3.13657148,25931.0,25930.0,1e-08]
[1694023440896,2.30685448,25931.0,25930.0,1e-08]
[1694023441106,2.25561448,25931.0,25930.0,1e-08]
[1694023441328,1.93319927,25931.0,25930.0,1e-08]
[1694023441555,1.16192227,25931.0,25930.0,1e-08]
[1694023441773,1.93319927,25931.0,25930.0,1e-08]
[1694023442020,2.70447627,25931.0,25930.0,1e-08]
[1694023442235,2.77233627,25931.0,25930.0,1e-08]
[1694023442446,2.75127627,25931.0,25930.0,1e-08]
[1694023442666,3.2915492,25931.0,25930.0,1e-08]
[1694023442881,3.7913492,25931.0,25930.0,1e-08]
[1694023443108,3.9535481,25931.0,25930.0,1e-08]
[1694023443361,3.9616281,25931.0,25930.0,1e-08]
[1694023443578,3.9616281,25931.0,25926.0,0.0202]
[1694023443579,0.02241521,25927.0,25926.0,0.0202]
[1694023443810,4.56744448,25927.0,25926.0,0.0202]
[1694023444023,4.88552338,25927.0,25926.0,0.0202]
[1694023444258,4.87556338,25927.0,25926.0,0.0202]
[1694023444472,4.87772338,25927.0,25926.0,0.0202]
[1694023444685,4.87964338,25927.0,25926.0,0.0202]
[1694023444900,5.26004865,25927.0,25926.0,0.00389249]
[1694023445118,5.25596865,25927.0,25926.0,0.00389249]
[1694023445363,0.49421521,25926.0,25925.0,0.01514688]
[1694023445578,3.47513848,25926.0,25925.0,0.01514688]
[1694023445795,3.03064217,25926.0,25925.0,0.01514688]
[1694023446013,3.02333848,25926.0,25925.0,0.01514688]
[1694023446231,4.51805914,25926.0,25925.0,0.01514688]
[1694023446452,3.62015914,25926.0,25925.0,0.01514688]
[1694023446671,3.11267848,25926.0,25925.0,0.01514688]
[1694023446889,2.30029727,25926.0,25925.0,0.01514688]
[1694023447117,2.25349727,25926.0,25925.0,0.01514688]
[1694023447327,0.38664527,25926.0,25925.0,0.01514688]
[1694023447545,0.024,25926.0,25925.0,0.01514688]
[1694023447759,0.024,25926.0,25925.0,0.03103072]
[1694023447991,0.41064527,25926.0,25925.0,0.03103072]
[1694023448203,1.18207127,25926.0,25925.0,0.03103072]
[1694023448497,1.95349727,25926.0,25925.0,0.03103072]
[1694023448723,1.18207127,25926.0,25925.0,0.01514688]
[1694023449148,0.38664527,25926.0,25925.0,0.01514688]
[1694023449599,0.024,25926.0,25925.0,0.03096385]
[1694023449870,0.38664527,25926.0,25925.0,0.03096385]
[1694023450104,1.15807127,25926.0,25925.0,0.03096385]
[1694023450319,1.18207127,25926.0,25925.0,0.03096385]
[1694023450562,0.024,25926.0,25925.0,0.20738978]
[1694023450785,0.024,25926.0,25925.0,1.85030178]
[1694023451015,1.291176,25935.0,25929.0,0.03758479]
[1694023451016,0.5,25935.0,25929.0,0.03758479]
[1694023451232,0.88664527,25935.0,25930.0,0.15465811]
[1694023451665,1.67780327,25935.0,25930.0,0.17036644]
[1694023451898,0.38664527,25934.0,25930.0,0.17036644]
[1694023452119,0.5,25935.0,25930.0,0.17036644]
[1694023452348,0.5,25935.0,25931.0,0.01758479]
[1694023452564,0.5,25935.0,25931.0,0.1722429]
[1694023452783,2.813482,25935.0,25931.0,0.01758479]
[1694023453004,0.38664527,25934.0,25931.0,0.01758479]
[1694023453256,2.551654,25933.0,25930.0,0.01570833]
[1694023453485,0.38664527,25932.0,25930.0,0.01570833]
[1694023453728,0.02,25930.0,25925.0,0.01514688]
[1694023453958,2.16734727,25929.0,25925.0,0.01514688]
[1694023454180,0.238,25926.0,25925.0,0.01514688]
[1694023454387,2.93892327,25926.0,25925.0,0.01514688]
[1694023454621,3.83900817,25926.0,25925.0,0.01514688]
[1694023454842,3.83840817,25926.0,25925.0,0.01514688]
[1694023455130,4.24023344,25926.0,25925.0,0.01514688]
[1694023455350,4.69286865,25926.0,25925.0,0.0023013]
[1694023455562,5.16256865,25926.0,25925.0,0.0023013]
[1694023455792,5.16280865,25926.0,25925.0,0.0023013]
[1694023455991,5.17312865,25926.0,25925.0,0.0023013]
[1694023456209,5.17204865,25926.0,25925.0,0.0023013]
[1694023456430,4.33980338,25926.0,25925.0,0.0023013]
[1694023456650,2.31821248,25926.0,25925.0,0.15695941]
[1694023456870,1.734825,25930.0,25925.0,0.15695941]
[1694023457091,0.68664527,25929.0,25926.0,0.15465811]
[1694023457301,0.38664527,25929.0,25926.0,0.15465811]
[1694023457518,0.38664527,25929.0,25925.0,0.01988609]
[1694023457519,0.38664527,25929.0,25927.0,0.01585079]
[1694023457727,1.15798827,25929.0,25927.0,0.01585079]
[1694023458155,1.92933127,25929.0,25925.0,0.01988609]
[1694023458391,0.024,25929.0,25925.0,0.1945442]
[1694023458603,0.024,25929.0,25928.0,0.03758479]
[1694023459271,1.95331927,25929.0,25928.0,0.03758479]
[1694023459706,1.92931927,25929.0,25928.0,0.03758479]
[1694023459933,1.95331927,25929.0,25928.0,0.03758479]
[1694023460149,2.72465627,25929.0,25928.0,0.03758479]
[1694023460362,2.70065627,25929.0,25928.0,0.01758479]
[1694023460586,1.95331927,25929.0,25928.0,0.03758479]
[1694023460798,1.95331927,25929.0,25928.0,0.01758479]
[1694023461021,1.95331927,25929.0,25928.0,0.03758479]
[1694023461924,0.41064527,25929.0,25928.0,0.03758479]
[1694023462148,0.024,25929.0,25928.0,0.03758479]
[1694023462368,0.024,25929.0,25928.0,0.05336058]
[1694023463297,0.41064527,25929.0,25928.0,0.05336058]
[1694023463509,1.18198227,25929.0,25928.0,0.05336058]
[1694023463966,0.771256,25932.0,25929.0,0.01758479]
[1694023464186,0.38664527,25931.0,25929.0,0.1722429]
[1694023464411,0.771225,25933.0,25929.0,0.01758479]
[1694023464639,0.38664527,25932.0,25929.0,0.1722429]
[1694023464854,0.38664527,25932.0,25929.0,0.01758479]
[1694023465071,0.38664527,25932.0,25930.0,0.01565159]
[1694023465501,1.15790327,25932.0,25929.0,0.01758479]
[1694023465715,1.92916127,25932.0,25929.0,0.01758479]
[1694023466154,1.542407,25934.0,25929.0,0.01758479]
[1694023466370,1.542407,25934.0,25929.0,0.1722429]
[1694023466588,0.024,25932.0,25930.0,0.01665159]
[1694023467030,0.771198,25934.0,25930.0,0.01565159]
[1694023467471,0.024,25932.0,25930.0,0.01565159]
[1694023467683,1.542398,25934.0,25929.0,0.01758479]
[1694023468155,0.024,25932.0,25930.0,0.001]
[1694023468970,0.024,25932.0,25931.0,0.01758479]
[1694023469201,0.02,25940.0,25931.0,0.01758479]
[1694023469202,0.770959,25942.0,25937.0,0.01758479]
[1694023469422,0.38664527,25941.0,25938.0,0.15465811]
[1694023469637,1.15763427,25941.0,25938.0,0.15465811]
[1694023469870,1.92862327,25941.0,25938.0,0.15465811]
[1694023470095,0.06046925,25942.0,25939.0,0.01758479]
[1694023470325,0.44711452,25942.0,25940.0,0.1722429]
[1694023470814,0.44711452,25942.0,25940.0,0.01758479]
[1694023471027,0.024,25941.0,25940.0,0.01758479]
[1694023471933,1.95260527,25941.0,25940.0,0.01758479]
[1694023472156,2.72358527,25941.0,25940.0,0.01758479]
[1694023472386,2.72358527,25941.0,25935.0,0.01758479]
[1694023472387,2.82925147,25941.0,25935.0,0.01758479]
[1694023472621,2.82925147,25941.0,25932.0,0.21688479]
[1694023472622,0.38664527,25940.0,25932.0,0.21688479]
[1694023472849,0.258,25937.0,25932.0,0.01758479]
[1694023473071,0.02241521,25935.0,25929.0,0.03758479]
[1694023473285,2.70028127,25934.0,25933.0,0.01574226]
[1694023473509,3.84427327,25934.0,25929.0,0.03758479]
[1694023473731,3.85423327,25934.0,25929.0,0.01758479]
[1694023473952,0.06792,25933.0,25929.0,0.01758479]
[1694023474174,3.47165727,25932.0,25928.0,0.01758479]
[1694023474460,3.56603727,25932.0,25928.0,0.01758479]
[1694023474685,0.0705,25931.0,25928.0,0.01758479]
[1694023474907,2.70056627,25930.0,25928.0,0.01758479]
[1694023475534,2.70056627,25930.0,25925.0,0.0423013]
[1694023475756,2.70056627,25930.0,25925.0,0.0023013]
[1694023475970,2.77226627,25930.0,25926.0,0.0171179]
[1694023476174,2.77136627,25930.0,25926.0,0.0171179]
[1694023476380,2.77100627,25930.0,25925.0,0.01988609]
[1694023476589,2.72456627,25930.0,25925.0,0.02088609]
[1694023476808,2.70056627,25930.0,25926.0,0.01758479]
[1694023477018,2.70056627,25930.0,25926.0,0.03470269]
[1694023477229,2.72456627,25930.0,25926.0,0.03570269]
[1694023477445,0.38664527,25930.0,25929.0,0.01758479]
[1694023477650,0.38664527,25930.0,25929.0,0.1722429]
[1694023477864,0.024,25930.0,25929.0,0.01758479]
[1694023478361,0.024,25930.0,25929.0,1.0635799]
[1694023478579,0.024,25930.0,25929.0,2.45159579]
[1694023479018,1.562173,25938.0,25930.0,0.08]
[1694023479236,0.38664527,25937.0,25933.0,0.01758479]
[1694023479443,1.15774527,25937.0,25934.0,0.15465811]
[1694023479883,1.15774527,25937.0,25933.0,0.01758479]
[1694023480100,0.38664527,25937.0,25933.0,0.01758479]
[1694023480522,1.95285127,25937.0,25934.0,0.001]
[1694023480981,1.92885127,25937.0,25933.0,0.01758479]
[1694023481197,1.92885127,25937.0,25935.0,0.0172867]
[1694023481625,1.92885127,25937.0,25933.0,0.01758479]
[1694023482064,1.92885127,25937.0,25926.0,0.01758479]
[1694023482065,0.02241521,25933.0,25926.0,0.01758479]
[1694023482293,0.238,25927.0,25926.0,0.09816102]
[1694023482514,0.238,25927.0,25925.0,0.0023013]